bitfinex/quotes_SOLUSD_20240811
["timestamp","ask_amount","ask_price","bid_price","bid_amount"]
[1723342741391,76.1902,155.21,155.2,0.8484409]
[1723342743227,76.31569,155.21,155.2,0.8484409]
[1723342743425,9.54,155.18,155.17,6.0]
[1723342743728,15.9841,155.18,155.17,6.0]
[1723342744715,9.79098,155.18,155.08,15.2248]
[1723342744912,9.54,155.13,155.08,15.2248]
[1723342746518,9.54,155.13,155.05,9.54]
[1723342746729,15.7172,155.16,155.05,9.54]
[1723342746730,9.54,155.12,155.05,9.54]
[1723342747731,9.54,155.12,155.06,20.0]
[1723342747937,9.54,155.12,155.06,19.62549]
[1723342748134,9.54,155.12,155.07,0.12549]
[1723342748316,9.54,155.12,155.07,0.37647]
[1723342748926,9.54,155.12,155.07,0.25098]
[1723342749233,9.54,155.12,155.07,0.12549]
[1723342749414,9.54,155.12,155.07,0.25098]
[1723342751520,22.1622,155.16,155.08,0.12549]
[1723342751722,9.54,155.15,155.08,0.37647]
[1723342751924,9.54,155.15,155.09,0.12549]
[1723342752143,9.54,155.15,155.09,0.25098]
[1723342752434,15.7172,155.16,155.09,0.25098]
[1723342752808,15.9853,155.15,155.09,0.25098]
[1723342753135,15.9853,155.15,155.08,0.12549]
[1723342753136,9.54,155.14,155.08,0.12549]
[1723342753634,9.54,155.14,155.07,0.25098]
[1723342753807,9.54,155.13,155.08,0.12549]
[1723342754012,15.7172,155.16,155.07,0.25098]
[1723342754013,9.54,155.12,155.07,0.25098]
[1723342754316,9.54,155.13,155.07,0.25098]
[1723342754729,9.54,155.14,155.08,0.25098]
[1723342755125,6.4453,155.15,155.08,0.12549]
[1723342755316,9.54,155.14,155.08,0.12549]
[1723342755523,6.4453,155.15,155.08,0.25098]
[1723342755838,9.54,155.15,155.08,1.54037235]
[1723342756041,15.9854,155.15,155.08,0.25098]
[1723342756822,9.54,155.15,155.1,0.12549]
[1723342757021,9.54,155.15,155.1,0.25098]
[1723342757843,9.54,155.15,155.06,9.54]
[1723342758044,9.54,155.13,155.07,0.25098]
[1723342759944,9.54,155.13,155.09,6.4478]
[1723342760745,9.54,155.14,155.09,6.4478]
[1723342761047,31.7022,155.16,155.11,6.4468]
[1723342765056,22.1622,155.16,155.11,6.4468]
[1723342765228,31.7022,155.16,155.11,6.4468]
[1723342766848,28.33715281,155.19,155.1,9.79098]
[1723342767039,15.9844,155.18,155.11,0.12549]
[1723342767427,6.4446,155.17,155.11,0.12549]
[1723342767723,15.9846,155.17,155.11,0.12549]
[1723342767931,9.54,155.15,155.09,16.2866]
[1723342768339,9.54,155.14,155.06,9.54]
[1723342768542,9.54,155.14,155.07,20.0]
[1723342768733,9.54,155.14,155.07,29.54]
[1723342768947,9.54,155.14,155.09,6.4474]
[1723342769841,9.54,155.14,155.08,0.25098]
[1723342770049,9.54,155.15,155.09,0.12549]
[1723342771526,15.9855,155.15,155.08,0.25098]
[1723342771730,15.9855,155.15,155.09,0.12549]
[1723342772950,6.4455,155.15,155.09,0.12549]
[1723342773257,15.9855,155.15,155.09,0.12549]
[1723342773433,9.54,155.15,155.09,0.37647]
[1723342773632,9.54,155.15,155.1,0.12549]
[1723342774127,15.9842,155.18,155.1,9.66549]
[1723342774361,6.4442,155.18,155.11,1.66559292]
[1723342774659,15.9842,155.18,155.11,1.66559292]
[1723342774843,15.9842,155.18,155.11,11.20559292]
[1723342776448,6.4442,155.18,155.11,0.37647]
[1723342776955,6.4446,155.17,155.12,0.12549]
[1723342777158,6.4446,155.17,155.11,0.37647]
[1723342777653,15.9842,155.18,155.11,0.37647]
[1723342778031,15.9842,155.18,155.12,0.12549]
[1723342780459,9.54,155.18,155.12,0.12549]
[1723342780758,6.445,155.16,155.11,0.37647]
[1723342781753,15.9844,155.18,155.11,0.37647]
[1723342782059,15.9844,155.18,155.12,0.12549]
[1723342782846,6.4447,155.17,155.12,0.12549]
[1723342783248,6.4447,155.17,155.11,0.37647]
[1723342784841,15.9851,155.16,155.1,16.41209]
[1723342787447,9.54,155.16,155.1,16.41209]
[1723342790755,9.54,155.16,155.1,16.2866]
[1723342793646,15.9852,155.16,155.1,16.2866]
[1723342793849,6.4445,155.17,155.1,16.2866]
[1723342794051,9.54,155.15,155.1,16.2866]
[1723342799144,9.54,155.16,155.1,16.2866]
[1723342800670,9.54,155.17,155.11,0.12549]
[1723342800867,13.17682936,155.2,155.13,9.54]
[1723342801190,15.9829,155.21,155.14,9.66549]
[1723342801349,15.9829,155.21,155.15,1.28887274]
[1723342801851,15.9829,155.21,155.14,9.66549]
[1723342802362,9.54,155.21,155.14,9.66549]
[1723342802563,15.9825,155.22,155.15,9.91647]
[1723342802753,6.4425,155.22,155.16,0.12549]
[1723342802966,15.9825,155.22,155.16,0.12549]
[1723342803166,9.54,155.23,155.16,9.66549]
[1723342803377,9.54,155.24,155.17,10.95426181]
[1723342803582,9.54,155.24,155.18,1.28866983]
[1723342804458,9.54,155.24,155.17,9.54]
[1723342804660,15.9816,155.24,155.17,9.54]
[1723342805277,6.4421,155.23,155.17,9.54]
[1723342805466,6.4421,155.23,155.16,9.66549]
[1723342805658,6.4421,155.23,155.17,0.12549]
[1723342806675,15.9821,155.23,155.17,0.12549]
[1723342806979,49.87584897,155.27,155.16,0.12549]
[1723342807185,6.4429,155.21,155.16,0.12549]
[1723342807676,9.54,155.19,155.12,9.54]
[1723342807877,9.54,155.19,155.13,45.12549]
[1723342808259,9.54,155.19,155.14,1.28890464]
[1723342808458,6.4433,155.2,155.13,45.12549]
[1723342808459,15.9833,155.2,155.13,45.12549]
[1723342808662,15.9833,155.2,155.14,0.12549]
[1723342808867,15.9833,155.2,155.14,0.25098]
[1723342809480,15.9833,155.2,155.11,21.3198]
[1723342809481,15.9849,155.17,155.11,15.1397]
[1723342810182,6.4451,155.16,155.11,15.1397]
[1723342810383,9.54,155.15,155.11,15.1397]
[1723342810692,15.9853,155.15,155.11,15.1397]
[1723342810981,9.54,155.15,155.11,15.1397]
[1723342812495,9.54,155.16,155.11,15.1397]
[1723342814298,15.9849,155.16,155.11,15.1397]
[1723342815074,22.184,155.22,155.11,15.1397]
[1723342815269,9.54,155.16,155.11,15.1397]
[1723342815569,9.54,155.17,155.11,15.1397]
[1723342815772,9.54,155.16,155.11,15.1397]
[1723342816360,15.9853,155.16,155.11,15.1397]
[1723342816566,9.54,155.15,155.11,15.1397]
[1723342816862,15.9845,155.17,155.11,15.1397]
[1723342817375,15.9849,155.16,155.11,15.1397]
[1723342817563,9.54,155.15,155.08,9.66549]
[1723342817763,9.54,155.15,155.09,0.37647]
[1723342818766,38.16,155.2,155.07,31.6308]
[1723342819098,9.54,155.14,155.08,0.37647]
[1723342821618,9.54,155.14,155.08,0.25098]
[1723342822868,9.54,155.14,155.08,0.12549]
[1723342823070,9.54,155.12,155.07,16.03619]
[1723342823265,9.54,155.11,155.04,10.94978883]
[1723342823465,9.54,155.11,155.05,20.0]
[1723342823669,9.54,155.12,155.05,20.0]
[1723342823888,9.54,155.12,155.04,20.48978883]
[1723342824295,9.54,155.12,155.08,6.4482]
[1723342824592,9.54,155.12,155.07,6.4486]
[1723342824791,9.54,155.11,155.07,6.4486]
[1723342828090,9.54,155.13,155.05,9.66549]
[1723342828286,9.54,155.13,155.06,1.54053539]
[1723342829197,15.9862,155.13,155.06,0.25098]
[1723342829808,9.54,155.12,155.07,6.4483]
[1723342829985,9.54,155.11,155.07,6.4483]
[1723342831785,9.54,155.12,155.07,6.4483]
[1723342832814,15.9866,155.12,155.07,6.4483]
[1723342835013,9.54,155.12,155.08,6.448]
[1723342835224,9.54,155.13,155.06,0.12549]
[1723342835423,9.54,155.13,155.06,1.79146663]
[1723342836637,6.4459,155.14,155.08,6.4482]
[1723342836801,9.54,155.13,155.08,6.4482]
[1723342840730,13.16563949,155.16,155.1,6.4473]
[1723342841026,15.9852,155.16,155.1,6.4473]
[1723342842522,9.54,155.14,155.06,10.04196]
[1723342842727,9.54,155.13,155.07,1.28953427]
[1723342843120,9.54,155.14,155.08,1.41500329]
[1723342843324,15.9854,155.15,155.08,1.41500329]
[1723342843706,15.9854,155.15,155.08,0.12549]
[1723342844103,6.4459,155.14,155.08,0.12549]
[1723342844307,15.9859,155.14,155.06,29.66549]
[1723342844646,15.9864,155.13,155.08,6.4482]
[1723342844822,9.54,155.13,155.07,0.12549]
[1723342845228,9.54,155.13,155.08,6.4482]
[1723342845807,15.9866,155.12,155.07,6.4486]
[1723342846657,9.54,155.12,155.08,6.4481]
[1723342853667,16.26021205,155.16,155.09,1.28960048]
[1723342853966,22.0069,155.17,155.13,6.4461]
[1723342854263,9.54,155.16,155.12,6.4465]
[1723342854868,273.53572642,155.2,155.12,9.54]
[1723342855077,273.53572642,155.2,155.13,1.28906462]
[1723342855078,276.8833,155.2,155.13,1.28906462]
[1723342855284,276.8833,155.2,155.13,10.82906462]
[1723342856145,22.0545,155.25,155.16,9.54]
[1723342856360,15.9816,155.24,155.17,1.28875822]
[1723342856567,9.54,155.24,155.17,1.28875822]
[1723342856770,9.54,155.24,155.17,10.82875822]
[1723342856960,22.0545,155.25,155.15,0.12549]
[1723342856961,38.0357,155.25,155.18,10.82875824]
[1723342857159,38.0357,155.25,155.18,9.54]
[1723342858063,22.0545,155.25,155.18,9.54]
[1723342858271,6.4422,155.23,155.16,25.246]
[1723342858577,22.0545,155.25,155.17,0.37647]
[1723342859144,9.54,155.2,155.13,9.54]
[1723342859347,9.54,155.2,155.14,20.50196]
[1723342860371,9.54,155.21,155.14,30.04196]
[1723342860675,9.54,155.23,155.16,9.54]
[1723342861668,15.982,155.23,155.16,9.54]
[1723342861864,15.982,155.23,155.15,9.54]
[1723342862055,15.9825,155.22,155.16,0.25098]
[1723342862256,31.5945,155.25,155.18,9.54]
[1723342862452,9.54,155.25,155.19,0.12549]
[1723342863176,15.9808,155.26,155.19,11.07951896]
[1723342863481,15.9804,155.27,155.19,11.07951896]
[1723342863682,15.9804,155.27,155.2,9.54]
[1723342863870,15.9804,155.27,155.21,1.28845945]
[1723342865465,15.9809,155.26,155.19,0.25098]
[1723342866789,9.54,155.26,155.19,0.25098]
[1723342866987,15.9804,155.27,155.2,11.07943838]
[1723342867292,15.9804,155.27,155.21,1.41384923]
[1723342867863,9.54,155.22,155.17,15.706]
[1723342869588,15.983,155.21,155.16,0.25098]
[1723342869962,9.54,155.21,155.16,0.25098]
[1723342871065,9.54,155.23,155.17,0.12549]
[1723342871376,9.54,155.22,155.16,0.25098]
[1723342871570,9.54,155.21,155.16,0.25098]
[1723342871985,9.54,155.22,155.16,0.25098]
[1723342872693,9.54,155.22,155.16,0.12549]
[1723342872891,9.54,155.22,155.16,0.25098]
[1723342877698,9.54,155.23,155.16,0.25098]
[1723342880413,9.54,155.26,155.19,9.54]
[1723342880988,15.9809,155.26,155.19,9.54]
[1723342881189,15.9812,155.25,155.18,0.12549]
[1723342881407,9.54,155.24,155.18,0.25098]
[1723342883422,9.54,155.23,155.17,0.12549]
[1723342883711,38.16,155.28,155.15,15.6453]
[1723342883712,15.9828,155.22,155.15,15.6453]
[1723342883900,9.54,155.22,155.16,0.25098]
[1723342884095,9.54,155.23,155.16,0.25098]
[1723342884313,9.54,155.24,155.17,0.25098]
[1723342884494,15.9815,155.25,155.18,0.25098]
[1723342885088,9.54,155.25,155.18,0.25098]
[1723342887327,15.9813,155.25,155.18,0.25098]
[1723342889623,24.62660115,155.29,155.2,9.54]
[1723342889624,15.9803,155.28,155.2,9.54]
[1723342889823,15.9803,155.28,155.2,10.82844683]
[1723342890125,6.4405,155.27,155.2,10.82844683]
[1723342890331,15.9805,155.27,155.2,10.82844683]
[1723342890531,6.69839942,155.32,155.26,9.54]
[1723342890731,21.7881,155.39,155.21,6.0643]
[1723342890732,9.54,155.37,155.3,9.54]
[1723342891026,15.9762,155.37,155.3,9.54]
[1723342892010,6.4367,155.36,155.3,9.54]
[1723342892701,15.9779,155.33,155.28,16.1034]
[1723342893106,9.54,155.33,155.28,16.1034]
[1723342893327,9.54,155.34,155.28,16.1034]
[1723342893945,28.48713081,155.39,155.32,9.54]
[1723342894237,6.4346,155.41,155.33,9.54]
[1723342894441,15.9746,155.41,155.33,9.54]
[1723342896438,15.9746,155.41,155.34,1.28733243]
[1723342896812,21.7881,155.43,155.32,9.79098]
[1723342896813,6.4358,155.38,155.32,9.79098]
[1723342897011,6.4358,155.38,155.32,9.66549]
[1723342897223,15.9753,155.4,155.32,9.66549]
[1723342898114,6.4354,155.39,155.32,9.66549]
[1723342898619,6.4358,155.38,155.32,9.54]
[1723342898809,15.9758,155.38,155.31,9.54]
[1723342899017,9.54,155.39,155.31,9.54]
[1723342899933,9.54,155.39,155.29,1.28743258]
[1723342900240,9.54,155.37,155.29,29.54]
[1723342900537,9.54,155.37,155.29,30.82772487]
[1723342900741,15.9763,155.37,155.3,9.54]
[1723342901114,6.4366,155.36,155.29,9.54]
[1723342901313,15.9766,155.36,155.28,31.7077]
[1723342901629,6.4366,155.36,155.29,10.82773128]
[1723342902941,15.9766,155.36,155.29,10.82773128]
[1723342903639,15.9766,155.36,155.29,9.54]
[1723342904640,9.54,155.36,155.28,16.1034]
[1723342904938,15.9775,155.34,155.25,9.54]
[1723342905143,9.54,155.33,155.25,9.54]
[1723342905448,9.54,155.33,155.26,9.54]
[1723342905943,6.4375,155.34,155.26,9.54]
[1723342906137,9.54,155.34,155.27,9.54]
[1723342906440,9.54,155.32,155.25,9.54]
[1723342906638,9.54,155.32,155.26,20.12549]
[1723342907543,9.54,155.3,155.22,9.54]
[1723342907718,9.54,155.28,155.2,31.1577]
[1723342908552,9.54,155.26,155.2,15.5661]
[1723342908844,9.54,155.26,155.19,9.54]
[1723342909020,9.54,155.28,155.2,9.54]
[1723342909221,9.54,155.28,155.21,9.54]
[1723342909735,28.7483,155.31,155.21,9.54]
[1723342910043,9.54,155.29,155.22,0.25098]
[1723342910346,9.54,155.26,155.19,9.54]
[1723342910647,9.54,155.26,155.2,0.12549]
[1723342911137,9.54,155.27,155.2,9.66549]
[1723342911944,9.54,155.27,155.2,9.54]
[1723342912147,9.54,155.25,155.17,29.54]
[1723342913237,9.54,155.25,155.18,0.12549]
[1723342913426,9.54,155.25,155.18,0.50196]
[1723342914043,9.54,155.23,155.16,15.5661]
[1723342914549,15.777,155.25,155.16,15.5661]
[1723342914750,9.54,155.22,155.16,15.5661]
[1723342914958,9.54,155.23,155.16,25.1061]
[1723342915244,9.54,155.24,155.16,25.1061]
[1723342916044,9.54,155.24,155.17,0.12549]
[1723342919358,9.54,155.23,155.16,25.1061]
[1723342920360,9.54,155.2,155.12,31.3689]
[1723342920558,9.54,155.22,155.14,9.54]
[1723342920758,9.54,155.23,155.16,9.54]
[1723342921564,28.4568,155.25,155.15,20.12549]
[1723342921565,9.54,155.22,155.15,20.12549]
[1723342921847,9.54,155.19,155.13,20.0]
[1723342922138,9.54,155.2,155.13,29.54]
[1723342922354,9.54,155.22,155.15,9.54]
[1723342923167,22.0154,155.25,155.16,0.12549]
[1723342923341,9.54,155.23,155.16,11.07989732]
[1723342923744,9.54,155.23,155.16,9.79098]
[1723342924154,9.54,155.23,155.17,1.288768]
[1723342924362,31.5554,155.25,155.18,10.82876708]
[1723342925068,12.93561189,155.28,155.2,9.54]
[1723342925273,15.9804,155.27,155.19,10.82865267]
[1723342925476,9.54,155.26,155.19,9.54]
[1723342925643,9.54,155.26,155.18,9.66549]
[1723342925843,9.54,155.26,155.19,0.12549]
[1723342927268,6.4404,155.27,155.19,0.12549]
[1723342927475,9.54,155.26,155.19,0.12549]
[1723342927775,25.5904,155.27,155.19,0.12549]
[1723342927955,25.5904,155.27,155.18,20.25098]
[1723342928545,12.6784,155.28,155.18,20.25098]
[1723342928746,31.8284,155.28,155.19,1.28851225]
[1723342929268,6.2384,155.28,155.19,1.28851225]
[1723342929567,6.2384,155.28,155.2,0.25098]
[1723342930160,6.2384,155.28,155.2,1.53934889]
[1723342930662,6.2384,155.28,155.21,0.12549]
[1723342930862,6.2384,155.28,155.21,1.41381429]
[1723342931374,34.2544,155.29,155.21,0.12549]
[1723342931867,34.2544,155.29,155.21,0.25098]
[1723342932045,34.2544,155.29,155.22,0.25098]
[1723342935876,40.6939,155.29,155.22,0.25098]
[1723342937472,34.2544,155.29,155.22,0.25098]
[1723342938076,40.6941,155.29,155.21,0.12549]
[1723342938284,34.2544,155.29,155.21,0.25098]
[1723342939588,40.694,155.29,155.21,0.25098]
[1723342940666,40.694,155.29,155.2,20.12549]
[1723342941386,45.0,155.28,155.2,20.0]
[1723342942564,19.15,155.27,155.2,20.0]
[1723342942774,19.15,155.27,155.19,15.7773]
[1723342943091,45.0,155.28,155.19,15.7773]
[1723342943257,19.15,155.26,155.19,15.7773]
[1723342943663,19.15,155.26,155.15,15.8622]
[1723342943664,19.15,155.24,155.15,15.8622]
[1723342945165,19.15,155.24,155.16,20.12549]
[1723342947690,9.58,155.23,155.16,20.12549]
[1723342950879,9.58,155.24,155.16,29.70549]
[1723342953094,9.58,155.23,155.16,20.0]
[1723342953292,9.58,155.21,155.15,15.8622]
[1723342955500,9.58,155.19,155.12,9.58]
[1723342955709,9.58,155.19,155.13,20.25098]
[1723342955877,9.58,155.2,155.13,31.11997904]
[1723342956398,9.58,155.2,155.13,29.83098]
[1723342956894,9.58,155.2,155.13,20.25098]
[1723342958387,9.58,155.2,155.14,1.28901756]
[1723342961907,9.58,155.2,155.13,20.25098]
[1723342962406,9.58,155.19,155.13,20.25098]
[1723342963485,9.58,155.19,155.14,1.28901603]
[1723342964803,9.58,155.19,155.13,21.53999586]
[1723342965008,9.58,155.19,155.13,21.41450586]
[1723342965304,9.58,155.2,155.13,21.41450586]
[1723342965886,9.58,155.19,155.13,21.41450586]
[1723342966085,9.58,155.19,155.13,20.12549]
[1723342970207,9.58,155.19,155.09,25.4422]
[1723342970208,9.58,155.17,155.09,25.4422]
[1723342970409,9.58,155.15,155.09,15.8622]
[1723342971611,9.58,155.15,155.1,0.12549]
[1723342971915,9.58,155.16,155.1,0.12549]
[1723342972302,9.58,155.16,155.1,20.0]
[1723342972497,9.58,155.14,155.09,15.8622]
[1723342972696,9.58,155.14,155.04,7.1946409]
[1723342972697,9.58,155.13,155.06,9.58]
[1723342973725,9.58,155.13,155.05,15.44949]
[1723342974024,9.58,155.14,155.06,29.95647]
[1723342974319,9.58,155.14,155.07,0.12549]
[1723342975924,9.58,155.14,155.07,9.70549]
[1723342979525,9.58,155.13,155.06,20.25098]
[1723342979705,9.58,155.13,155.06,20.12549]
[1723342980538,9.58,155.13,155.06,20.0]
[1723342980706,9.58,155.12,155.06,20.0]
[1723342981905,6.4459,155.14,155.05,15.324]
[1723342981906,9.58,155.11,155.05,15.324]
[1723342982107,9.58,155.1,155.05,15.324]
[1723342982536,9.58,155.11,155.05,15.324]
[1723342983715,9.58,155.11,155.08,6.4482]
[1723342984933,9.58,155.09,155.04,10.94890648]
[1723342985118,9.58,155.08,155.05,6.4491]
[1723342987411,9.58,155.08,155.06,6.449]
[1723342992831,9.58,155.09,155.06,6.449]
[1723342995329,9.58,155.08,155.05,6.4495]
[1723342996437,9.58,155.08,155.06,6.4489]
[1723342997546,9.58,155.08,155.04,7.2979409]
[1723342997839,9.58,155.08,155.05,6.4495]
[1723342999847,6.4468,155.12,155.04,0.8484409]
[1723343000050,6.4462,155.13,155.08,6.4481]
[1723343000244,9.58,155.12,155.05,9.58]
[1723343000550,9.58,155.12,155.09,6.4478]
[1723343001324,6.5787,155.14,155.09,6.4478]
[1723343001548,9.58,155.12,155.09,6.4478]
[1723343002124,13.0246,155.14,155.09,6.4478]
[1723343002443,9.58,155.12,155.09,6.4478]
[1723343002741,13.0246,155.14,155.09,6.4478]
[1723343003059,9.58,155.13,155.09,6.4478]
[1723343003237,9.58,155.13,155.08,6.4482]
[1723343003542,9.58,155.12,155.08,6.4482]
[1723343004758,15.6845,155.15,155.06,1.289635]
[1723343004958,9.58,155.14,155.1,6.447]
[1723343005157,9.58,155.15,155.1,6.447]
[1723343005656,6.0116,155.18,155.14,6.4457]
[1723343005828,9.58,155.18,155.13,6.4461]
[1723343006020,9.58,155.18,155.1,9.58]
[1723343006021,16.0246,155.17,155.09,9.58]
[1723343006222,16.0246,155.17,155.1,21.28934833]
[1723343006638,16.0246,155.17,155.1,20.0]
[1723343006839,9.58,155.17,155.1,20.0]
[1723343007246,9.58,155.17,155.1,21.28927904]
[1723343007824,9.58,155.17,155.11,1.28927344]
[1723343008022,12.70608704,155.22,155.13,9.58]
[1723343008251,9.58,155.21,155.14,10.86902062]
[1723343008747,16.0228,155.21,155.13,26.0411]
[1723343009241,9.58,155.2,155.13,26.0411]
[1723343010629,6.4428,155.21,155.14,0.12549]
[1723343010630,9.58,155.21,155.14,0.12549]
[1723343010845,6.0116,155.22,155.15,9.58]
[1723343011150,22.0342,155.22,155.14,9.83098]
[1723343012247,16.0233,155.2,155.13,16.4611]
[1723343012445,9.58,155.19,155.13,16.4611]
[1723343013847,9.58,155.19,155.12,0.12549]
[1723343014053,9.58,155.19,155.12,20.50196]
[1723343015049,9.58,155.17,155.12,20.0]
[1723343015343,9.58,155.18,155.13,1.28918887]
[1723343015548,9.58,155.18,155.11,29.58]
[1723343015844,9.58,155.18,155.12,0.12549]
[1723343018254,9.58,155.16,155.11,20.0]
[1723343018429,9.58,155.16,155.1,20.25098]
[1723343018630,9.58,155.17,155.11,0.12549]
[1723343018831,9.58,155.18,155.11,0.12549]
[1723343020237,9.58,155.18,155.11,0.25098]
[1723343021342,9.58,155.16,155.11,0.12549]
[1723343021736,9.58,155.18,155.11,0.12549]
[1723343021968,9.58,155.18,155.11,0.25098]
[1723343022471,9.58,155.18,155.11,1.54014061]
[1723343022669,9.58,155.18,155.11,0.25098]
[1723343024860,9.58,155.18,155.11,0.12549]
[1723343026470,9.58,155.17,155.11,0.12549]
[1723343027547,9.58,155.16,155.09,16.58659]
[1723343027749,9.58,155.15,155.09,16.4611]
[1723343030096,9.58,155.16,155.09,16.4611]
[1723343030291,9.58,155.16,155.09,26.0411]
[1723343032870,9.58,155.17,155.1,11.12030566]
[1723343033172,9.58,155.18,155.11,10.86917612]
[1723343033601,9.58,155.17,155.1,9.70549]
[1723343033782,9.58,155.17,155.1,9.83098]
[1723343034167,9.58,155.16,155.1,0.25098]
[1723343034375,9.58,155.16,155.1,20.0]
[1723343036698,9.58,155.17,155.1,29.58]
[1723343037402,9.58,155.17,155.1,9.58]
[1723343037606,21.7534,155.19,155.1,9.58]
[1723343037896,9.58,155.18,155.1,9.58]
[1723343038908,21.7534,155.19,155.1,9.58]
[1723343039209,9.58,155.18,155.11,9.70549]
[1723343039403,9.58,155.19,155.11,11.12019433]
[1723343039592,9.58,155.19,155.11,9.83098]
[1723343040007,16.0237,155.19,155.12,1.289141]
[1723343040300,9.58,155.18,155.12,1.289141]
[1723343040912,9.58,155.18,155.11,9.83098]
[1723343041125,15.7982,155.23,155.12,9.70549]
[1723343041284,22.0341,155.22,155.14,9.58]
[1723343041477,22.0341,155.22,155.15,1.28890325]
[1723343041781,22.0341,155.22,155.14,9.58]
[1723343042584,15.7982,155.23,155.15,9.58]
[1723343042793,9.58,155.22,155.15,9.58]
[1723343043097,9.58,155.22,155.16,1.28878994]
[1723343043305,9.58,155.23,155.16,10.86877265]
[1723343043485,16.0216,155.24,155.16,9.58]
[1723343043683,16.022,155.23,155.16,9.58]
[1723343044313,16.022,155.23,155.15,9.83098]
[1723343044512,9.58,155.22,155.16,0.12549]
[1723343047115,6.4416,155.24,155.16,0.25098]
[1723343047310,9.58,155.22,155.16,0.25098]
[1723343047608,9.58,155.25,155.17,9.58]
[1723343047814,9.58,155.25,155.18,0.12549]
[1723343048110,9.58,155.24,155.18,0.12549]
[1723343048812,6.4409,155.26,155.18,0.25098]
[1723343048999,9.58,155.25,155.18,0.37647]
[1723343049186,16.0212,155.25,155.18,0.25098]
[1723343050188,9.58,155.25,155.18,0.25098]
[1723343050389,6.4408,155.26,155.19,9.83098]
[1723343050390,9.58,155.26,155.19,9.83098]
[1723343050619,9.58,155.26,155.2,1.41385677]
[1723343050788,9.58,155.26,155.2,0.12549]
[1723343050994,9.58,155.26,155.2,0.25098]
[1723343052107,15.7982,155.27,155.2,0.25098]
[1723343052312,9.58,155.26,155.2,0.25098]
[1723343054704,9.58,155.25,155.2,0.25098]
[1723343055801,15.7982,155.27,155.2,0.25098]
[1723343055988,9.58,155.25,155.19,20.0]
[1723343056188,9.58,155.23,155.16,9.58]
[1723343056389,9.58,155.22,155.15,9.58]
[1723343057207,9.58,155.21,155.14,15.9208]
[1723343057403,9.58,155.19,155.14,15.9208]
[1723343058210,6.4428,155.22,155.14,26.78960209]
[1723343058211,9.58,155.22,155.14,26.78960209]
[1723343058588,9.58,155.22,155.14,25.5008]
[1723343058790,9.58,155.22,155.15,0.12549]
[1723343059000,9.58,155.21,155.14,25.5008]
[1723343060397,9.58,155.2,155.14,15.9208]
[1723343062713,9.58,155.19,155.14,15.9208]
[1723343063105,9.58,155.2,155.14,15.9208]
[1723343064120,6.4424,155.22,155.14,15.9208]
[1723343064121,9.58,155.21,155.15,1.28897182]
[1723343064416,9.58,155.22,155.15,1.28897182]